fUSD/lending_fUSD_20240406
["ID","MTS","AMOUNT","RATE_DAILY","PERIOD"]
[321705650,1712417505354,287.68381006,0.0002079,2]
[321705655,1712417525332,363.32718012,0.0002079,2]
[321705658,1712417541467,11213.5812,0.00020901,2]
[321705675,1712417696916,645.39,0.00019499,2]
[321705725,1712418231861,613.12,0.00019191,2]
[321705732,1712418339773,1450.0,0.00021,3]
[321705740,1712418465493,250.89815982,0.00021,2]
[321705743,1712418481728,166.90618861,0.00020904,2]
[321705744,1712418503384,1240.92917042,0.00021,2]
[321705745,1712418534489,500.0,0.0002036,2]
[321705746,1712418546725,355.50308125,0.00021,2]
[321705747,1712418557042,500.0,0.0002036,2]
[321705748,1712418564952,757.63756955,0.00021,2]
[321705749,1712418573965,837.06111752,0.0001575,2]
[321705750,1712418581611,405.04059642,0.00021,2]
[321705751,1712418591997,2753.0,0.000255,20]
[321705782,1712418631642,-3157.37112809,0.00021001,2]
[321705784,1712418631651,-1000.0,0.00021006,2]
[321705786,1712418631661,-150.0,0.00021009,2]
[321705788,1712418631670,-835.48,0.0002101,2]
[321705790,1712418631680,-5568.51,0.0002101,2]
[321705792,1712418631690,-1767.1,0.00021016,2]
[321705794,1712418631699,-150.0,0.00021023,2]
[321705796,1712418631709,-250.0,0.00021028,2]
[321705798,1712418631719,-200.0,0.00021029,2]
[321705800,1712418631728,-500.0,0.00021041,2]
[321705802,1712418631737,-150.99,0.00021041,2]
[321705804,1712418631747,-200.0,0.0002107,2]
[321705805,1712418631756,-1647.72,0.00021078,2]
[321705806,1712418631766,-3056.89,0.00021078,2]
[321705807,1712418631775,-1035.09,0.00021079,2]
[321705808,1712418631785,-997.52,0.00021088,2]
[321705809,1712418631796,-4959.87,0.00021089,2]
[321705810,1712418631805,-1983.93,0.00021091,2]
[321705811,1712418631814,-500.0,0.0002111,2]
[321705812,1712418631824,-500.0,0.00021116,2]
[321705813,1712418631833,-354.5,0.00021262,2]
[321705814,1712418631843,-150.99,0.00021262,2]
[321705815,1712418631852,-190.35,0.00021312,2]
[321705816,1712418631862,-239.86,0.00021354,2]
[321705817,1712418631872,-289.58587209,0.00021354,2]
[321705821,1712418632115,-210.40412791,0.00021354,2]
[321705822,1712418632126,-190.35,0.0002137,2]
[321705824,1712418632138,-190.35,0.00021429,2]
[321705826,1712418632148,-613.12,0.00021455,2]
[321705828,1712418632158,-500.0,0.00021456,2]
[321705830,1712418632168,-500.0,0.00021456,2]
[321705832,1712418632177,-166.9061886,0.00021476,2]
[321705834,1712418632187,-190.35,0.00021487,2]
[321705835,1712418632196,-163.47,0.00021495,2]
[321705837,1712418632205,-190.35,0.00021546,2]
[321705839,1712418632218,-48.76781269,0.00021604,2]
[321705843,1712418632251,-141.58218731,0.00021604,2]
[321705845,1712418632261,-190.35,0.00021662,2]
[321705847,1712418632271,-190.35,0.00021721,2]
[321705850,1712418632285,-190.35,0.00021779,2]
[321705851,1712418632296,-190.35,0.00021838,2]
[321705853,1712418632306,-190.35,0.00021896,2]
[321705854,1712418632317,-618.96489906,0.00021926,2]
[321705855,1712418632326,-190.35,0.00021955,2]
[321705856,1712418632336,-845.4065,0.00021999,2]
[321705857,1712418632345,-8415.49106432,0.00022,4]
[321705858,1712418632368,-560.39224989,0.00022,4]
[321705859,1712418632381,-1135.30907993,0.00022,4]
[321705860,1712418632405,-21592.20858535,0.00022,4]
[321705884,1712418639734,-1803.68570485,0.00022,4]
[321705885,1712418639957,-881.61000023,0.00022,4]
[321705942,1712418654053,198.05043882,0.0002036,2]
[321705943,1712418657091,155.62226538,0.00020636,2]
[321705944,1712418670328,175710.80061443,0.00021,2]
[321705945,1712418714016,500.0,0.0002036,2]
[321705950,1712418766917,240.4236211,0.0002036,2]
[321705951,1712418769304,291.74027277,0.0002036,2]
[321705952,1712418776687,397.25888931,0.0002036,2]
[321705953,1712418778035,42470.12951744,0.0002036,2]
[321705957,1712418797002,514.47964884,0.00019362,2]
[321705958,1712418797784,673.02,0.00019563,2]
[321705959,1712418801858,16232.34138005,0.0002036,2]
[321705961,1712418818034,1131.74605712,0.0002036,2]
[321705962,1712418826532,3789.60249615,0.0002036,2]
[321705963,1712418840153,513.376769,0.0002036,2]
[321705964,1712418847219,3950.0,0.0002,2]
[321705965,1712418853872,3213.36133773,0.0002036,2]
[321705966,1712418855354,277.70914053,0.00020223,2]
[321705967,1712418883496,917.97,0.00020972,2]
[321705974,1712419008699,-177.18,0.00021275,2]
[321705975,1712419008722,-342.37210086,0.00021328,2]
[321705976,1712419008743,-200.0,0.00021329,2]
[321705977,1712419008765,-1280.44789914,0.0002135,2]
[321705979,1712419009658,-2000.0,0.0002135,2]
[321705980,1712419010068,-2000.0,0.0002135,2]
[321705981,1712419010662,-2000.0,0.0002135,2]
[321705982,1712419011183,-1327.91049972,0.00021327,2]
[321705983,1712419011204,-672.08950028,0.00021328,2]
[321705984,1712419011697,-2000.0,0.00021328,2]
[321705985,1712419011953,-485.28162781,0.00021328,2]
[321705986,1712419011977,-1514.71837219,0.0002135,2]
[321705988,1712419012368,-85.85864386,0.0002135,2]
[321705989,1712419012390,-1825.59679794,0.00021351,2]
[321705990,1712419012413,-88.5445582,0.00021355,2]
[321705991,1712419012724,-124.2959418,0.00021355,2]
[321705992,1712419012745,-200.0,0.00021365,2]
[321705993,1712419012766,-500.0,0.0002145,2]
[321705994,1712419012787,-186.78090381,0.0002145,2]
[321705995,1712419012808,-988.92315439,0.00021451,2]
[321705996,1712419013074,-2000.0,0.00021451,2]
[321705997,1712419013474,-2000.0,0.00021451,2]
[321705998,1712419013881,-2000.0,0.00021451,2]
[321705999,1712419014505,-2000.0,0.00021451,2]
[321706000,1712419014801,-2000.0,0.00021451,2]
[321706001,1712419015150,-2000.0,0.00021451,2]
[321706002,1712419015538,-865.4932854,0.00021228,2]
[321706003,1712419015560,-1134.5067146,0.00021451,2]
[321706004,1712419015916,-2000.0,0.00021451,2]
[321706005,1712419016307,-2000.0,0.00021451,2]
[321706006,1712419016675,-2000.0,0.00021451,2]
[321706007,1712419017269,-2000.0,0.00021451,2]
[321706008,1712419017506,-2000.0,0.00021451,2]
[321706009,1712419017868,-2000.0,0.00021451,2]
[321706010,1712419018238,-2000.0,0.00021451,2]
[321706011,1712419018554,-2000.0,0.00021451,2]
[321706012,1712419018879,-2000.0,0.00021451,2]
[321706013,1712419019240,-2000.0,0.00021451,2]
[321706014,1712419019556,-2000.0,0.00021451,2]
[321706015,1712419019876,-438.95414611,0.0002145,2]
[321706016,1712419019897,-1561.04585389,0.00021451,2]
[321706017,1712419020206,-2000.0,0.00021451,2]
[321706018,1712419020548,-2000.0,0.00021451,2]
[321706019,1712419020915,-2000.0,0.00021451,2]
[321706020,1712419021242,-150.0,0.00021366,2]
[321706021,1712419021265,-1850.0,0.00021451,2]
[321706022,1712419021562,-2000.0,0.00021451,2]
[321706023,1712419021897,-2000.0,0.00021451,2]
[321706024,1712419022257,-150.0,0.0002145,2]
[321706025,1712419022280,-1850.0,0.00021451,2]
[321706026,1712419022589,-2000.0,0.00021451,2]
[321706027,1712419022919,-2000.0,0.00021451,2]
[321706028,1712419023240,-2000.0,0.00021451,2]
[321706029,1712419023544,-2000.0,0.00021451,2]
[321706030,1712419023883,-500.0,0.00021366,2]
[321706031,1712419023904,-1500.0,0.00021451,2]
[321706032,1712419024222,-2000.0,0.00021451,2]
[321706033,1712419024546,-2000.0,0.00021451,2]
[321706034,1712419024882,-2000.0,0.00021451,2]
[321706035,1712419025197,-2000.0,0.00021451,2]
[321706036,1712419025546,-2000.0,0.00021451,2]
[321706037,1712419025868,-2000.0,0.00021451,2]
[321706038,1712419026171,-2000.0,0.00021451,2]
[321706039,1712419026485,-2000.0,0.00021451,2]
[321706040,1712419026794,-2000.0,0.00021451,2]
[321706041,1712419026852,458.81231394,0.00020377,2]
[321706042,1712419027096,-2000.0,0.00021451,2]
[321706043,1712419027580,-2000.0,0.00021451,2]
[321706044,1712419027730,-2000.0,0.00021451,2]
[321706045,1712419028041,-2000.0,0.00021451,2]
[321706047,1712419028362,-2000.0,0.00021451,2]
[321706048,1712419028662,-2000.0,0.00021451,2]
[321706049,1712419029267,-2000.0,0.00021451,2]
[321706050,1712419029584,-2000.0,0.00021451,2]
[321706051,1712419029934,-2000.0,0.00021451,2]
[321706052,1712419030303,-2000.0,0.00021451,2]
[321706053,1712419030648,-2000.0,0.00021451,2]
[321706054,1712419030944,-2000.0,0.00021451,2]
[321706055,1712419031298,-2000.0,0.00021451,2]
[321706056,1712419031607,-2000.0,0.00021451,2]
[321706057,1712419031951,-2000.0,0.00021451,2]
[321706058,1712419032261,-2000.0,0.00021451,2]
[321706059,1712419032704,-2000.0,0.00021451,2]
[321706062,1712419101342,-166.36,0.00021315,2]
[321706063,1712419101367,-1833.64,0.00021356,2]
[321706064,1712419101852,-2000.0,0.00021356,2]
[321706065,1712419102374,-2000.0,0.00021356,2]
[321706066,1712419102838,-949.89807929,0.00021356,2]
[321706067,1712419103082,-200.0,0.00021371,2]
[321706068,1712419103104,-850.10192071,0.0002145,2]
[321706069,1712419103182,-1158.25700788,0.0002145,2]
[321706070,1712419103205,-841.74299212,0.00021451,2]
[321706071,1712419104032,-2000.0,0.00021451,2]
[321706073,1712419104628,-2000.0,0.00021451,2]
[321706074,1712419105183,-2000.0,0.00021451,2]
[321706075,1712419105830,-2000.0,0.00021451,2]
[321706076,1712419133977,414.97389678,0.00016088,2]
[321706077,1712419176452,-250.0,0.00021327,2]
[321706078,1712419176480,-1750.0,0.00021451,2]
[321706079,1712419177092,-2000.0,0.00021451,2]
[321706080,1712419177142,-2000.0,0.00021451,2]
[321706081,1712419177689,-2000.0,0.00021451,2]
[321706082,1712419178255,-2000.0,0.00021451,2]
[321706083,1712419178673,-2000.0,0.00021451,2]
[321706084,1712419179074,-2000.0,0.00021451,2]
[321706085,1712419179411,-2000.0,0.00021451,2]
[321706086,1712419179773,-2000.0,0.00021451,2]
[321706087,1712419180099,-2000.0,0.00021451,2]
[321706088,1712419180488,-2000.0,0.00021451,2]
[321706089,1712419181729,11415.74160047,0.00016088,2]
[321706090,1712419183509,318.7508899,0.00016088,2]
[321706091,1712419185443,155.0,0.00015927,2]
[321706092,1712419186381,183.15142394,0.00019305,2]
[321706093,1712419187006,364.86024513,0.00016088,2]
[321706094,1712419187168,1038.04438346,0.00016088,2]
[321706095,1712419187392,1123.8434254,0.00016088,2]
[321706096,1712419187421,451.51956905,0.00020162,2]
[321706097,1712419188866,797.51529173,0.00020377,2]
[321706098,1712419189101,155.0,0.00016088,2]
[321706099,1712419190968,1767.21417569,0.00016088,2]
[321706100,1712419192072,155.54404609,0.00019305,2]
[321706101,1712419192987,747.70725432,0.00019305,2]
[321706102,1712419193380,951.45483861,0.00015284,2]
[321706103,1712419193451,155.6868564,0.00018,2]
[321706104,1712419193983,214.45296291,0.00012066,2]
[321706105,1712419194024,289.84133199,0.00016088,2]
[321706106,1712419195202,407.48094606,0.00016088,2]
[321706107,1712419195701,307.17927733,0.00016088,2]
[321706108,1712419196006,363.37286518,0.0001716,2]
[321706109,1712419197511,318.46048088,0.00016088,2]
[321706110,1712419200563,20100.79242508,0.00016088,2]
[321706111,1712419200890,477.69324998,0.00016088,2]
[321706112,1712419201730,360.33121161,0.00016088,2]
[321706113,1712419203227,150.0,0.00016088,2]
[321706114,1712419203267,150.0,0.00016088,2]
[321706115,1712419203317,150.0,0.00016088,2]
[321706116,1712419203369,150.0,0.00016088,2]
[321706117,1712419203668,150.0,0.00016088,2]
[321706118,1712419203863,150.0,0.00016088,2]
[321706119,1712419204059,150.0,0.00016088,2]
[321706120,1712419204259,150.0,0.00016088,2]
[321706121,1712419204469,150.0,0.00016088,2]
[321706122,1712419204641,150.0,0.00016088,2]
[321706123,1712419204804,150.0,0.00016088,2]
[321706124,1712419204999,150.0,0.00016088,2]
[321706125,1712419205077,226.583469,0.00016088,2]
[321706126,1712419205190,150.0,0.00016088,2]
[321706128,1712419205618,150.0,0.00016088,2]
[321706129,1712419205808,150.0,0.00016088,2]
[321706130,1712419205980,150.0,0.00016088,2]
[321706131,1712419206143,150.0,0.00016088,2]
[321706132,1712419206313,150.0,0.00016088,2]
[321706133,1712419206499,150.0,0.00016088,2]
[321706134,1712419206695,150.0,0.00016088,2]
[321706135,1712419206887,150.0,0.00016088,2]
[321706136,1712419206970,364.86024513,0.00016088,2]
[321706137,1712419207043,1038.04438346,0.00016088,2]
[321706138,1712419207075,150.0,0.00016088,2]
[321706139,1712419207295,150.0,0.00016088,2]
[321706140,1712419207402,449.2518599,0.00020162,2]
[321706141,1712419207472,150.0,0.00016088,2]
[321706142,1712419207895,150.0,0.00016088,2]
[321706143,1712419208085,150.0,0.00016088,2]
[321706144,1712419208271,150.0,0.00016088,2]
[321706145,1712419208494,150.0,0.00016088,2]
[321706146,1712419208684,150.0,0.00016088,2]
[321706147,1712419208878,150.0,0.00016088,2]
[321706148,1712419209067,150.0,0.00016088,2]
[321706149,1712419209426,150.0,0.00016088,2]
[321706150,1712419209626,150.0,0.00016088,2]
[321706151,1712419209822,188.882808,0.00016088,2]
[321706152,1712419215302,823.26414601,0.00015284,2]
[321706153,1712419216000,274.76805556,0.00017158,2]
[321706154,1712419219162,407.2233687,0.00016088,2]
[321706155,1712419221052,314.92341784,0.00016088,2]
[321706156,1712419221703,423.05269181,0.00016088,2]
[321706157,1712419222975,340.81787903,0.00016088,2]
[321706158,1712419227921,285.813,0.00016088,2]
[321706159,1712419238357,-166.88650538,0.0002116,2]
[321706160,1712419238379,-1000.0,0.0002116,2]
[321706161,1712419238401,-833.11349462,0.00021161,2]
[321706162,1712419238735,-2000.0,0.00021161,2]
[321706163,1712419239359,-2000.0,0.00021161,2]
[321706164,1712419239658,-2000.0,0.00021161,2]
[321706165,1712419240647,-2000.0,0.00021161,2]
[321706166,1712419241100,-2000.0,0.00021161,2]
[321706168,1712419241580,-2000.0,0.0002116,2]
[321706169,1712419242028,-2000.0,0.0002116,2]
[321706170,1712419242469,-2000.0,0.0002116,2]
[321706171,1712419243151,-2000.0,0.0002116,2]
[321706172,1712419243632,-2000.0,0.0002116,2]
[321706173,1712419244368,-2000.0,0.0002116,2]
[321706174,1712419244581,-2000.0,0.0002116,2]
[321706175,1712419245158,-2000.0,0.0002116,2]
[321706176,1712419248993,323.07531063,0.00016088,2]
[321706177,1712419262948,323.07531063,0.00016088,2]
[321706178,1712419284936,239.90507232,0.00016088,2]
[321706180,1712419336683,882.03,0.00019133,2]
[321706182,1712419343936,3795.606605,0.00020942,2]
[321706183,1712419365509,500.0,0.00020348,2]
[321706184,1712419369101,840.0,0.00020348,2]
[321706185,1712419372505,362.65,0.00020348,2]
[321706186,1712419391507,481.12,0.00020359,2]
[321706187,1712419391712,481.12,0.00020364,2]
[321706188,1712419391921,481.12,0.00020369,2]
[321706189,1712419392150,481.12,0.00020375,2]
[321706190,1712419392377,481.12,0.0002038,2]
[321706191,1712419392775,481.12,0.00020386,2]
[321706192,1712419393003,481.12,0.00020391,2]
[321706193,1712419393213,481.12,0.00020396,2]
[321706194,1712419393427,481.12,0.00020402,2]
[321706195,1712419393634,481.12,0.00020407,2]
[321706196,1712419393917,481.12,0.00020412,2]
[321706197,1712419394145,481.12,0.00020418,2]
[321706198,1712419394378,481.12,0.00020423,2]
[321706199,1712419394596,481.12,0.00020429,2]
[321706200,1712419394646,4916.89,0.00020359,2]
[321706201,1712419394823,481.12,0.00020434,2]
[321706202,1712419395020,481.12,0.00020439,2]
[321706203,1712419395238,481.12,0.00020445,2]
[321706204,1712419395440,481.12,0.0002045,2]
[321706205,1712419395660,481.12,0.00020455,2]
[321706206,1712419395711,1210.58734192,0.00020363,2]
[321706207,1712419395886,481.12,0.00020461,2]
[321706208,1712419423847,171.74,0.00020527,2]
[321706209,1712419424055,171.74,0.00020583,2]
[321706210,1712419424490,171.74,0.0002064,2]
[321706211,1712419424742,171.74,0.00020696,2]
[321706212,1712419424968,171.74,0.00020752,2]
[321706213,1712419425210,171.74,0.00020809,2]
[321706214,1712419425473,171.74,0.00020865,2]
[321706215,1712419425690,171.74,0.00020921,2]
[321706216,1712419426166,171.74,0.00020977,2]
[321706217,1712419440246,3013.3751,0.00020948,2]
[321706218,1712419440542,200.0,0.00020258,2]
[321706219,1712419441574,1783.81,0.00020258,2]
[321706220,1712419462064,166.90506153,0.00020932,2]
[321706221,1712419467284,234.04,0.00020267,2]
[321706222,1712419472821,3207.18,0.00020254,2]
[321706223,1712419475206,167.3,0.00020862,2]
[321706224,1712419503106,421.82187408,0.00021008,4]
[321706225,1712419503403,421.82187408,0.00021032,4]
[321706226,1712419503715,421.82187408,0.00021055,4]
[321706227,1712419504056,421.82187408,0.00021079,4]
[321706228,1712419504398,421.82187408,0.00021103,4]
[321706229,1712419505092,421.82187408,0.00021126,4]
[321706230,1712419505142,421.82187408,0.0002115,4]
[321706231,1712419505496,421.82187408,0.00021173,4]
[321706232,1712419505829,421.82187408,0.00021197,4]
[321706233,1712419506144,421.82187408,0.0002122,4]
[321706234,1712419506556,421.82187408,0.00021244,4]
[321706235,1712419506873,421.82187408,0.00021268,4]
[321706236,1712419507222,421.82187408,0.00021291,4]
[321706237,1712419507506,421.82187408,0.00021315,4]
[321706238,1712419507806,421.82187408,0.00021338,4]
[321706239,1712419508105,421.82187408,0.00021362,4]
[321706240,1712419508418,421.82187408,0.00021385,4]
[321706241,1712419508606,1793.19,0.00020269,2]
[321706242,1712419508732,421.82187408,0.00021409,4]
[321706243,1712419509040,421.82187408,0.00021433,4]
[321706244,1712419509381,421.82187408,0.00021456,4]
[321706245,1712419509699,421.82187408,0.0002148,4]
[321706246,1712419513382,166.58,0.00020261,2]
[321706247,1712419522052,168.74,0.00016215,2]
[321706248,1712419525748,181.24,0.00020269,2]
[321706249,1712419526784,7607.36167299,0.00020927,2]
[321706250,1712419540412,150.0,0.00021034,4]
[321706251,1712419540719,150.0,0.00021059,4]
[321706252,1712419540759,150.0,0.00020257,2]
[321706253,1712419541028,150.0,0.00021084,4]
[321706254,1712419541365,150.0,0.0002111,4]
[321706255,1712419541676,150.0,0.00021135,4]
[321706256,1712419541730,611.787716,0.00020919,2]
[321706257,1712419542029,150.0,0.0002116,4]
[321706258,1712419542381,150.0,0.00021186,4]
[321706259,1712419542729,150.0,0.00021211,4]
[321706260,1712419543149,150.0,0.00021237,4]
[321706261,1712419543426,150.0,0.00021262,4]
[321706262,1712419543750,150.0,0.00021287,4]
[321706263,1712419544058,150.0,0.00021313,4]
[321706264,1712419544340,150.0,0.00021338,4]
[321706265,1712419544638,150.0,0.00021363,4]
[321706266,1712419544982,150.0,0.00021389,4]
[321706267,1712419545338,150.0,0.00021414,4]
[321706268,1712419545656,150.0,0.0002144,4]
[321706269,1712419545953,150.0,0.00021465,4]
[321706270,1712419546251,150.0,0.0002149,4]
[321706271,1712419555782,500.0,0.00020256,2]
[321706272,1712419576945,191.76981577,0.00021008,4]
[321706273,1712419577248,191.76981577,0.00021032,4]
[321706274,1712419577761,191.76981577,0.00021055,4]
[321706275,1712419577829,191.76981577,0.00021079,4]
[321706276,1712419578185,191.76981577,0.00021103,4]
[321706277,1712419578435,200.0,0.00020192,2]
[321706278,1712419578519,191.76981577,0.00021126,4]
[321706279,1712419578822,191.76981577,0.0002115,4]
[321706280,1712419579221,191.76981577,0.00021173,4]
[321706281,1712419579417,191.76981577,0.00021197,4]
[321706282,1712419579763,191.76981577,0.0002122,4]
[321706283,1712419580225,191.76981577,0.00021244,4]
[321706284,1712419581162,191.76981577,0.00021268,4]
[321706285,1712419581487,191.76981577,0.00021291,4]
[321706286,1712419581788,191.76981577,0.00021315,4]
[321706287,1712419582112,191.76981577,0.00021338,4]
[321706288,1712419582503,191.76981577,0.00021362,4]
[321706289,1712419582802,191.76981577,0.00021385,4]
[321706290,1712419583105,191.76981577,0.00021409,4]
[321706291,1712419583434,191.76981577,0.00021433,4]
[321706292,1712419583723,191.76981577,0.00021456,4]
[321706293,1712419584009,191.76981577,0.0002148,4]
[321706294,1712419603424,174.38832174,0.00020904,2]
[321706295,1712419609367,174.38832173,0.00020906,2]
[321706296,1712419615397,174.38832173,0.00020907,2]
[321706297,1712419621937,150.0,0.00021475,4]
[321706298,1712419629114,150.0,0.00021086,4]
[321706299,1712419629441,150.0,0.00021164,4]
[321706300,1712419629874,150.0,0.00021242,4]
[321706301,1712419630209,150.0,0.00021319,4]
[321706302,1712419630774,150.0,0.00021397,4]
[321706303,1712419630827,150.0,0.00021475,4]
[321706304,1712419632126,469.7817716,0.00028,90]
[321706305,1712419632580,407.93141682,0.00020999,2]
[321706306,1712419636350,8881.02491519,0.00020999,2]
[321706307,1712419639194,163.78,0.00020209,2]
[321706308,1712419642613,5530.76208236,0.00020999,2]
[321706309,1712419643811,500.0,0.00020999,2]
[321706310,1712419652770,237.00295912,0.00020999,2]
[321706311,1712419659707,2348.97634667,0.00020999,2]
[321706312,1712419664641,5374.4182039,0.00020999,2]
[321706313,1712419665322,536.49080227,0.00020999,2]
[321706314,1712419665789,1042.67964763,0.00020999,2]
[321706315,1712419666220,2514.0,0.0002,3]
[321706316,1712419686992,23900.0,0.0002023,2]
[321706317,1712419693055,400.0,0.00019041,2]
[321706318,1712419703119,369.15,0.00020371,2]
[321706319,1712419711903,2507.0,0.00021,2]
[321706324,1712419723327,2500.0,0.00021,2]
[321706325,1712419733442,1300.0,0.00021,2]
[321706326,1712419733468,1200.0,0.00021,2]
[321706328,1712419742075,150.0,0.00021,2]
[321706329,1712419744599,500.0,0.0002036,2]
[321706331,1712419747966,1000.0,0.00020999,2]
[321706332,1712419752445,201.21,0.00021,2]
[321706333,1712419761467,3191.76611036,0.00020847,2]
[321706334,1712419761592,407.93141682,0.00020999,2]
[321706335,1712419771723,640.08300789,0.00020999,2]
[321706336,1712419774827,500.0,0.00020999,2]
[321706337,1712419776451,1968.14,0.00020257,2]
[321706339,1712419786499,155.0,0.00020999,2]
[321706340,1712419786561,2348.97634667,0.00020999,2]
[321706341,1712419795502,3373.51114999,0.00020999,2]
[321706342,1712419804289,215.43117381,0.00020999,2]
[321706343,1712419813305,697.86,0.00020275,2]
[321706344,1712419814478,1000.0,0.00020999,2]
[321706369,1712419831848,-620.18279938,0.00021003,2]
[321706371,1712419831858,-193.84903752,0.00021003,2]
[321706372,1712419831867,-1167.63976919,0.00021004,2]
[321706373,1712419831876,-150.0,0.00021008,2]
[321706374,1712419831886,-150.0,0.00021008,2]
[321706375,1712419831895,-150.0,0.00021008,2]
[321706376,1712419831904,-150.0,0.00021008,2]
[321706377,1712419831913,-150.0,0.00021008,2]
[321706378,1712419831923,-150.0,0.00021008,2]
[321706379,1712419831932,-150.0,0.00021008,2]
[321706380,1712419831941,-150.0,0.00021008,2]
[321706381,1712419831950,-292.20173792,0.00021008,2]
[321706382,1712419831959,-150.0,0.00021008,2]
[321706383,1712419831968,-150.99,0.00021032,2]
[321706384,1712419831978,-171.74,0.00021034,2]
[321706385,1712419831987,-500.0,0.0002105,2]
[321706386,1712419831996,-278.15686245,0.00021058,2]
[321706387,1712419832006,-272.33938331,0.00021058,2]
[321706388,1712419832015,-640.08300789,0.00021058,2]
[321706389,1712419832025,-500.0,0.00021058,2]
[321706390,1712419832034,-155.80461378,0.00021058,2]
[321706391,1712419832044,-693.42729792,0.00021058,2]
[321706392,1712419832053,-3372.17288107,0.00021058,2]
[321706393,1712419832062,-215.43117381,0.00021058,2]
[321706394,1712419832071,-1994.46346703,0.00021059,2]
[321706395,1712419832083,-236.81265412,0.00021059,2]
[321706396,1712419832092,-6434.13494296,0.0002106,2]
[321706397,1712419832101,-2239.87,0.0002106,2]
[321706398,1712419832111,-164.79,0.0002106,2]
[321706399,1712419832120,-499.99,0.0002106,2]
[321706400,1712419832129,-6105.18427137,0.00021061,2]
[321706401,1712419832139,-1714.10036199,0.00021061,2]
[321706402,1712419832149,-550.07,0.0002109,2]
[321706403,1712419832158,-171.74,0.0002109,2]
[321706404,1712419832168,-171.74,0.00021146,2]
[321706405,1712419832177,-1209.69390769,0.00021157,2]
[321706406,1712419832187,-535.92106845,0.00021157,2]
[321706407,1712419832196,-3204.77961622,0.00021157,2]
[321706408,1712419832205,-779.22607251,0.00021157,2]
[321706409,1712419832215,-7605.86832276,0.00021157,2]
[321706410,1712419832224,-326.43277157,0.00021157,2]
[321706411,1712419832233,-164.05123617,0.00021157,2]
[321706412,1712419832243,-1000.0,0.00021158,2]
[321706414,1712419832253,-41030.36364581,0.00021159,2]
[321706417,1712419832270,-522.87932085,0.00021159,2]
[321706419,1712419832281,-280.83854349,0.00021159,2]
[321706423,1712419832308,-493.64174045,0.00021159,2]
[321706424,1712419832319,-3857.66577745,0.00021159,2]
[321706425,1712419833427,-834.26875927,0.00021159,2]
[321706426,1712419833444,-9877.83271578,0.00021159,2]
[321706433,1712419838006,-1000.0,0.00021058,2]
[321706434,1712419838016,-10281.6707961,0.00021159,2]
[321706435,1712419838173,-12780.70251191,0.00021159,2]
[321706438,1712419840065,-5474.96121747,0.00021159,2]
[321706439,1712419840075,-27236.89478254,0.0002116,2]
[321706440,1712419840174,-350.2695717,0.0002116,2]
[321706441,1712419840721,-917.16623103,0.0002116,2]
[321706442,1712419840777,-481.71249996,0.0002116,2]
[321706548,1712419842898,-319.44613213,0.00021158,2]
[321706549,1712419842908,-2933.7744154,0.0002116,2]
[321706550,1712419843119,-883.84071127,0.0002116,2]